Cogmind - Beta 13 @@@ ROGUE MODE // 2024.04.20 @ 15:32:06 Player: Zaros426 Result: Destroyed by H-61 Shepherd with Heavy Assault Cannon Performance ------------- Evolutions (2) 1000 Regions Visited (5) 1000 Robots Destroyed (36) 180 Value Destroyed (1025) 1025 Prototype IDs (2) 40 Alien Tech Used (0) 0 Bonus (0) 0 TOTAL SCORE: 3245 Bonus ------- None Cogmind --------- Core Integrity 0/550 Matter 70/300 Energy 76/100 System Corruption 5% Temperature Cool (0) Movement Core (450) Ox8 Location -8/Materials Parts ------- > --- POWER (1) -------- (None) > --- PROPULSION (4) --- (None) > --- UTILITY (4) ------ Heat Sink Large Storage Unit > --- WEAPON (2) ------- EM Pulse Gun EM Pulse Gun > --- INVENTORY (15) --- Large Storage Unit Improved Terrain Scanner Terrain Scan Processor Mini Grenade Launcher Explosive Trap Explosive Trap Explosive Trap Peak State ------------ > --- POWER ------------ Ion Engine > --- PROPULSION ------- Improved Treads Improved Treads Improved Treads Improved Treads > --- UTILITY ---------- Large Storage Unit Signal Interpreter Light Armor Plating > --- WEAPON ----------- Pulse Rifle Mini Grenade Launcher > --- INVENTORY -------- Ion Engine Large Storage Unit Improved Terrain Scanner Terrain Scan Processor EM Pulse Gun EM Pulse Gun EMP Blaster Mini Grenade Launcher Explosive Trap Explosive Trap Explosive Trap Explosive Trap [Rating: 18] Favorites ----------- Power Ion Engine Engine Ion Engine Propulsion Light Treads Treads Light Treads Utility Large Storage Unit Device Seismic Detector Storage Large Storage Unit Processor Signal Interpreter Protection Light Armor Plating Weapon EMP Blaster Energy Gun EM Pulse Gun Launcher EMP Blaster Build | -11 -10 -10 -10 -9 -8 ------- Run | Yrd Mat Min Exi Min Mat Slots Evolved 4 | . . . . . 4 Power . | . . . . . . Propulsion 2 | . . . . . 2 Utility 2 | . . . . . 2 Weapon . | . . . . . . Parts Attached 43 | 7 17 . 2 . 17 Power 5 | 1 3 . . . 1 Engine 5 | 1 3 . . . 1 Core . | . . . . . . Reactor . | . . . . . . Propulsion 12 | 2 5 . . . 5 Treads 12 | 2 5 . . . 5 Leg . | . . . . . . Wheel . | . . . . . . Hover . | . . . . . . Flight . | . . . . . . Utility 9 | 2 2 . 1 . 4 Device 3 | 1 . . . . 2 Storage 3 | 1 1 . 1 . . Processor 1 | . 1 . . . . Hackware . | . . . . . . Protection 2 | . . . . . 2 Artifact . | . . . . . . Weapon 17 | 2 7 . 1 . 7 Energy Gun 12 | 2 6 . . . 4 Energy Cannon . | . . . . . . Ballistic Gun . | . . . . . . Ballistic Cannon . | . . . . . . Launcher 5 | . 1 . 1 . 3 Special Weapon . | . . . . . . Impact Weapon . | . . . . . . Slashing Weapon . | . . . . . . Piercing Weapon . | . . . . . . Special Melee Weapon . | . . . . . . Unidentified Prototypes . | . . . . . . Corrupted Parts 3 | . 2 . . . 1 System Corruption 11 | . 6 . . . 5 Parts Lost 18 | . 3 . . . 15 Power 3 | . 1 . . . 2 Propulsion 6 | . 1 . . . 5 Utility 4 | . . . . . 4 Weapon 5 | . 1 . . . 4 Highest Loss Streak 12 | . 1 . . . 12 To Critical Strikes . | . . . . . . Average Slot Usage (%) 94 | . 91 100 100 100 66 Engine 13 | . 13 14 14 14 5 Treads 26 | . 25 28 28 28 16 Device 4 | . 12 . . . 5 Storage 13 | . 14 14 14 14 9 Processor 9 | . 1 14 14 14 7 Energy Gun 11 | . 16 14 8 . 5 Launcher 14 | . 6 14 19 28 9 Naked Turns . | . . . . . . Heaviest Build 34 | 14 32 31 31 30 34 Greatest Support 69 | 40 40 40 40 40 69 Greatest Overweight (x) 9 | . 9 . . . 8 Average Overweight (x) . | . . . . . . Largest Inventory Capacity 15 | 8 15 15 15 15 15 Average Capacity 14 | 7 12 15 15 15 15 Most Carried 15 | 2 15 15 15 15 14 Average Carried 12 | . 7 14 15 15 12 Final Capacity 15 | 8 15 15 15 15 15 Final Carried 15 | 2 14 15 15 15 7 Class Distribution -------------------- 96% | Mutant 3% | Scavenger-Mutant Dominant Class ---------------- Mutant | -10/Materials Mutant | -10/Mines Mutant | -10/Exiles Mutant | -9/Mines Mutant | -8/Materials Resources | -11 -10 -10 -10 -9 -8 ----------- Run | Yrd Mat Min Exi Min Mat Matter Collected 750 | 94 383 24 . 15 234 Remotely . | . . . . . . Salvage Created 1463 | 120 1038 30 . . 275 Parts 76 | 12 44 5 . . 15 Haulers Intercepted 1 | . 1 . . . . Recyclers Shooed 3 | . 3 . . . . Parts Field Recycled . | . . . . . . Retrieved Matter . | . . . . . . Parts Self-Destructed . | . . . . . . Prevented . | . . . . . . Kills | -11 -10 -10 -10 -9 -8 ------- Run | Yrd Mat Min Exi Min Mat Combat Hostiles Destroyed 24 | . 18 . . . 6 Melee 1 | . . . . . 1 Guns 13 | . 11 . . . 2 AOE 10 | . 7 . . . 3 Classes Destroyed 10 | 2 5 . . . 3 Worker 1 | 1 . . . . . Builder 1 | . . . . . 1 Tunneler 5 | 4 . 1 . . . Hauler 1 | . 1 . . . . Recycler 1 | . 1 . . . . Watcher 3 | . 2 . . . 1 Swarmer 3 | . 3 . . . . Grunt 16 | . 15 . . . 1 Sentry 3 | . . . . . 3 Specialist 2 | . . . . . 2 Best Kill Streak 5 | 2 5 1 . . 4 Combat Bots Only 5 | . 5 . . . 2 Max Kills in Single Turn 2 | 1 2 1 . . 1 Gunslinging . | . . . . . . Exploded 1 | . 1 . . . 1 Melee 1 | . . . . . 1 Uniques/NPCs Destroyed . | . . . . . . Combat | -11 -10 -10 -10 -9 -8 -------- Run | Yrd Mat Min Exi Min Mat Hostile Shots Fired 234 | . 54 . . . 180 Missed 89 | . 15 . . . 74 Damage Taken 2731 | . 701 . 30 . 2000 Core 634 | . 72 . 10 . 552 Absorbed by Shields . | . . . . . . Core Remaining (%) 83 | 100 . . . 67 . Volleys Fired 123 | 11 78 . 14 . 20 Largest 2 | 2 2 . 1 . 2 Hottest 103 | 90 80 . 30 . 103 Shots Fired 144 | 15 86 1 14 . 28 Gun 104 | 15 72 1 . . 16 Cannon . | . . . . . . Launcher 40 | . 14 . 14 . 12 Special . | . . . . . . Kinetic . | . . . . . . Thermal 48 | 11 30 . . . 7 Explosive 24 | . . . 14 . 10 Electromagnetic 72 | 4 56 1 . . 11 Robot Hit Streak 13 | 5 13 5 . . 13 Robot Miss Streak 3 | 3 2 . . . 1 Penetration Max . | . . . . . . Secondary Targets 1 | . . . . . 1 Max Gunslinging Chain 1 | . . . . . 1 Shots Hit Robots 94 | 8 61 1 . . 24 Core Hits 56 | 5 32 1 . . 18 Critical Kills . | . . . . . . Critical Parts Destroyed . | . . . . . . Critical Strikes 6 | 1 5 . . . . Burn 4 | 1 3 . . . . Corrupt 2 | . 2 . . . . Melee Attacks . | . . . . . . Impact . | . . . . . . Slashing . | . . . . . . Piercing . | . . . . . . Sneak Attacks . | . . . . . . Combat Hostiles . | . . . . . . Follow-up Attacks . | . . . . . . Damage Inflicted 2093 | 99 1180 15 . . 799 Guns 1069 | 99 741 15 . . 214 Cannons . | . . . . . . Explosions 1011 | . 439 . . . 572 Melee . | . . . . . . Ramming 13 | . . . . . 13 Kinetic . | . . . . . . Thermal 627 | 73 431 . . . 123 Explosive 538 | . . . . . 538 Electromagnetic 915 | 26 749 15 . . 125 Impact . | . . . . . . Slashing . | . . . . . . Piercing . | . . . . . . Highest Corruption 6 | . 6 6 6 6 5 Average Corruption 5 | . 5 6 6 6 5 Corruption Purged . | . . . . . . Corruption Blocked . | . . . . . . Effects 71 | . 4 12 52 1 2 Message Errors 15 | . . 4 11 . . Matter Fused 19 | . . 4 15 . . Heat Flow Errors 8 | . 1 . 7 . . Energy Discharges 13 | . 2 1 9 . 1 Parts Rejected 1 | . . . . . 1 Data Loss (minor) 6 | . . 1 4 1 . Data Loss (major) 6 | . 1 1 4 . . Misfires 1 | . . 1 . . . Alerts 2 | . . . 2 . . Overload Shots . | . . . . . . Overflow Damage 12 | . . . . . 12 Projectiles . | . . . . . . Explosions 12 | . . . . . 12 Melee . | . . . . . . Knockbacks . | . . . . . . Impact . | . . . . . . Kinetic . | . . . . . . Secondary . | . . . . . . Self-Inflicted Damage 178 | . 127 . 31 . 20 Shots 8 | . 6 . 1 . 1 Rammed 4 | . 1 . . . 3 Targets Rammed 4 | . 1 . . . 3 Kicked . | . . . . . . Crushed . | . . . . . . Highest Temperature 265 | 60 174 4 265 . 132 Average Temperature 63 | 26 54 3 105 . 56 Received Heat Transfer 492 | . 249 . . . 243 Effects 1 | . . . 1 . . Energy Bleed 1 | . . . 1 . . Siege Activations . | . . . . . . Robots Corrupted . | . . . . . . Combat Hostiles . | . . . . . . Parts Fried 4 | . 4 . . . . Impact Corruptions . | . . . . . . Robots Melted . | . . . . . . Combat Hostiles . | . . . . . . Parts Melted 4 | 2 2 . . . . Heat Transferred 1889 | 296 1334 . . . 259 Parts Sabotaged . | . . . . . . Parts Stolen . | . . . . . . Parts Stripped . | . . . . . . Power Chain Reactions 4 | . 4 . . . . Alert | -11 -10 -10 -10 -9 -8 ------- Run | Yrd Mat Min Exi Min Mat Peak Influence 349 | 25 349 97 . . 238 Initial 92 | . 16 92 . . . Average 116 | 7 146 82 . . 128 Maximum Alert Level 1 | . 1 . . . 1 Low Security (%) 78 | 100 67 100 . 100 77 Level 1 21 | . 32 . . . 22 Level 2 . | . . . . . . Level 3 . | . . . . . . Level 4 . | . . . . . . Level 5 . | . . . . . . High Security . | . . . . . . Max Security . | . . . . . . Squads Dispatched 7 | . 5 . . . 2 Investigation 4 | . 4 . . . . Extermination . | . . . . . . Reinforcement 3 | . 1 . . . 2 Assault . | . . . . . . Garrison . | . . . . . . Intercept . | . . . . . . Searches Triggered . | . . . . . . Construction Impeded 1 | . . . . . 1 Haulers Reinforced . | . . . . . . Active Scanning Responses . | . . . . . . Cargo Convoy Interrupts . | . . . . . . Stealth | -11 -10 -10 -10 -9 -8 --------- Run | Yrd Mat Min Exi Min Mat Distress Signals 4 | . 2 . . . 2 Communications Jammed . | . . . . . . Distress Signals . | . . . . . . Times Spotted 42 | . 29 . . . 13 Peak Tracking Total 6 | . 3 . . . 6 Tactical Retreats 8 | . 6 . . . 2 Traps | -11 -10 -10 -10 -9 -8 ------- Run | Yrd Mat Min Exi Min Mat Traps Triggered 5 | . 5 . . . . Indirectly . | . . . . . . Trap Hack Attempts . | . . . . . . Triggered . | . . . . . . Disarmed . | . . . . . . Reprogrammed . | . . . . . . Reused 1 | . . . . . 1 Traps Extracted . | . . . . . . Installed 1 | . . . . . 1 Triggered 1 | . . . . . 1 Most Traps Carried 4 | . . 4 4 4 4 Machines | -11 -10 -10 -10 -9 -8 ---------- Run | Yrd Mat Min Exi Min Mat Machines Disabled 10 | . 3 . 3 . 4 Max in Single Turn 3 | . 1 . 1 . 3 Machines Repaired . | . . . . . . Machines Dismantled . | . . . . . . Machines Sabotaged . | . . . . . . Overloaded Fab Kills . | . . . . . . Hacking | -11 -10 -10 -10 -9 -8 --------- Run | Yrd Mat Min Exi Min Mat Machines Accessed 12 | . 6 . 4 . 2 Terminals 7 | . 6 . . . 1 Fabricators . | . . . . . . Repair Stations . | . . . . . . Recycling Units . | . . . . . . Scanalyzers 1 | . . . . . 1 Garrison Access . | . . . . . . Total Hacks 29 | . 15 . 4 . 10 Successful 15 | . 3 . 4 . 8 Failed 14 | . 12 . . . 2 Catastrophic 3 | . 3 . . . . Database Lockouts . | . . . . . . Manual 20 | . 13 . 4 . 3 Terminals 16 | . 15 . . . 1 Fabricators . | . . . . . . Repair Stations . | . . . . . . Recycling Units . | . . . . . . Scanalyzers 9 | . . . . . 9 Garrison Access . | . . . . . . Terminal Hacks 8 | . 3 . 4 . 1 Record 4 | . . . 4 . . Robot Analysis 3 | . 2 . . . 1 Prototype ID Bank 1 | . 1 . . . . Fabricator Hacks . | . . . . . . Repair Station Hacks . | . . . . . . Recycling Unit Hacks . | . . . . . . Scanalyzer 7 | . . . . . 7 Insert Component 3 | . . . . . 3 Analyze 4 | . . . . . 4 Garrison Access Hacks . | . . . . . . Unauthorized Hacks . | . . . . . . Terminals . | . . . . . . Fabricators . | . . . . . . Repair Stations . | . . . . . . Recycling Units . | . . . . . . Scanalyzers . | . . . . . . Garrison Access . | . . . . . . Data Cores Recovered . | . . . . . . Used . | . . . . . . Hacking Detections 7 | . 5 . . . 2 Full Trace Events 4 | . 4 . . . . Feedback Events . | . . . . . . Feedback Blocked . | . . . . . . Robot Schematics Acquired . | . . . . . . Robots Built . | . . . . . . Authchips . | . . . . . . Time . | . . . . . . Total Robot Build Rating . | . . . . . . Part Schematics Acquired 3 | . . . . . 3 Parts Built . | . . . . . . Authchips . | . . . . . . Time . | . . . . . . Total Part Build Rating . | . . . . . . Parts Repaired . | . . . . . . Time . | . . . . . . Parts Recycled . | . . . . . . Recycled Matter . | . . . . . . Retrieved Matter . | . . . . . . Retrieved Components . | . . . . . . Parts Scanalyzed 3 | . . . . . 3 Part Schematics Acquired 3 | . . . . . 3 Parts Damaged . | . . . . . . Bothacking | -11 -10 -10 -10 -9 -8 ------------ Run | Yrd Mat Min Exi Min Mat Used RIF Installer . | . . . . . . Robots Hacked . | . . . . . . Non-combat . | . . . . . . Combat . | . . . . . . Robot Hacks Applied . | . . . . . . Relay Couplers Released . | . . . . . . Fabnet Peak Effective % . | . . . . . . Robots Rewired . | . . . . . . Allies Hacked . | . . . . . . Hacks Repelled . | . . . . . . Allies | -11 -10 -10 -10 -9 -8 -------- Run | Yrd Mat Min Exi Min Mat Total Allies . | . . . . . . Largest Group . | . . . . . . Highest-Rated Group . | . . . . . . Highest-Rated Ally . | . . . . . . Total Orders . | . . . . . . Ally Attacks . | . . . . . . Total Damage . | . . . . . . Kills . | . . . . . . Allies Corrupted . | . . . . . . Allies Melted . | . . . . . . Intel | -11 -10 -10 -10 -9 -8 ------- Run | Yrd Mat Min Exi Min Mat Robot Analysis Total 3 | . 2 . . . 1 Derelict Logs Recovered 1 | . . 1 . . . Drone Launches . | . . . . . . Drone Recoveries . | . . . . . . Exploration | -11 -10 -10 -10 -9 -8 ------------- Run | Yrd Mat Min Exi Min Mat Turns Passed 4114 | 144 1226 464 1918 69 293 Spaces Moved 2280 | 71 591 287 1180 44 107 Core 14 | 6 1 . . . 7 Treads 2266 | 65 590 287 1180 44 100 Legs . | . . . . . . Wheels . | . . . . . . Hover . | . . . . . . Flight . | . . . . . . Fastest Speed 50 | 50 160 160 160 160 160 Average Speed 163 | 150 169 160 160 160 194 Slowest Speed 500 | 160 500 160 160 160 450 Overloaded Moves . | . . . . . . Propulsion Burnouts . | . . . . . . Robots Hopped . | . . . . . . Cave-ins Triggered . | . . . . . . Exploration Rate (%) 47 | 4 96 58 97 13 14 Regions Visited 5 Branch Regions 3 Pre-discovered Areas . | . . . . . . Known Exits Taken 4 | . 1 1 1 1 . Unknown Exits Taken 1 | 1 . . . . . Scrap Searched 1 | . . . . 1 . Spaces Dug 7 | . . . . . 7 Terrain Destroyed 199 | . 15 . 130 . 54 Melee . | . . . . . . Projectile . | . . . . . . AOE 199 | . 15 . 130 . 54 Terrain Rammed . | . . . . . . Walls Destroyed . | . . . . . . Machines Disabled . | . . . . . . Actions | -11 -10 -10 -10 -9 -8 --------- Run | Yrd Mat Min Exi Min Mat Total 2504 | 90 722 293 1197 43 159 Wait 20 | . 12 . 1 . 7 Move 2275 | 70 590 286 1179 43 107 Hop . | . . . . . . Pick Up 24 | 1 18 4 . . 1 Fast Attach 21 | 7 7 . . . 7 Attach 11 | . 3 . . . 8 Detach 1 | 1 . . . . . Swap 11 | . 7 . 2 . 2 Drop 13 | . 6 3 1 . 3 Fire 123 | 11 78 . 14 . 20 Melee . | . . . . . . Ram . | . . . . . . Kick . | . . . . . . Crush 4 | . 1 . . . 3 Escape Stasis . | . . . . . . Rewire . | . . . . . . Trap 1 | . . . . . 1 Miscellaneous . | . . . . . . Route ------- -11/Scrapyard -10/Materials (discovered 5 exits: *Mat x3 / *Min x2) -10/Mines (discovered 2 exits: *Mat / *Exi) -10/Exiles (discovered 2 exits: *Min x2) -9/Mines -8/Materials History --------- Turn | Location | Event 8 | -11/Scrapyard | Discovered new exit (range 15) 145 | -11/Scrapyard | Entered Materials 307 | -10/Materials | Build established: Mutant 326 | -10/Materials | Discovered new exit (range 6) 434 | -10/Materials | Discovered new exit (range 8) 627 | -10/Materials | Discovered new exit (range 8) 788 | -10/Materials | Discovered new exit (range 11) 1179 | -10/Materials | Discovered new exit (range 15) 1235 | -10/Materials | Identified exit to Materials 1369 | -10/Materials | Identified exit to Mines 1371 | -10/Materials | Entered Mines 1531 | -10/Mines | Learned Materials terminal intel 1679 | -10/Mines | Found a hidden stash of uninstalled traps 1734 | -10/Mines | Discovered exit to Materials (range 10) 1827 | -10/Mines | Deemed a non-threat by the Exiles lab entrance 1827 | -10/Mines | Discovered new exit (range 5) 1831 | -10/Mines | Identified exit to Exiles 1835 | -10/Mines | Entered Exiles 1835 | -10/Exiles | Found Exiles lab abandoned 2490 | -10/Exiles | Discovered new exit (range 15) 2512 | -10/Exiles | Identified exit to Mines 2832 | -10/Exiles | Discovered exit to Mines (range 15) 3753 | -10/Exiles | Entered Mines 3773 | -9/Mines | Discovered new exit (range 9) 3784 | -9/Mines | Identified exit to Materials 3822 | -9/Mines | Entered Materials 3822 | -8/Materials | Evolved 4 slots: Propulsion x2, Utility x2 3823 | -8/Materials | Loaded intel: 12 terminal locations 3972 | -8/Materials | Lost 3 parts (1n1u1w) 4082 | -8/Materials | Core integrity fell below 50% 4099 | -8/Materials | Core integrity fell below 20% 4115 | -8/Materials | Destroyed by H-61 Shepherd with Heavy Assault Cannon Last Messages --------------- 04094_ U-05 Engineer builds a Wall. 04095_ The unstable cave ceiling collapses. 04095_ U-05 Engineer lays Concrete. 04097_ The unstable cave ceiling collapses. 04097_ Mni. Grenade Launcher destroyed. 04099_ U-05 Engineer lays Concrete. 04100_ System corrupted: Energy discharge (-17). 04100_ U-05 Engineer lays Concrete. 04100_ X-57 Shotgunner destroyed. 04100_ Switching to secondary target: H-61 Shepherd. 04100_ U-05 Engineer lays Concrete. 04101_ U-05 Engineer builds a Wall. 04101_ U-05 Engineer lays Concrete. 04104_ Knocked back. 04109_ K-01 Serf collects debris. 04110_ U-05 Engineer lays Concrete. 04112_ K-01 Serf collects debris. 04113_ U-05 Engineer lays Concrete. 04113_ U-05 Engineer builds a Wall. 04113_ U-05 Engineer lays Concrete. Map ----- +----------------------------------------------------+ | ?????????????????????????????????????????????????? | | ?????????????????????????????????????????????????? | | ?????????????????????????????????????????????????? | | ?????????????????????????????????????????????????? | | ?????????????????????????????????????????????????? | | ?????????????????????????????????????????????????? | | ?????????????????????????????????????????????????? | | ?????????????????????????????????????????????????? | | ?????????????????????????????????????????????????? | | ?????????????????????????????????????????????????? | | ?????????????????????????????????????????????????? | | ?????????????????????????????????????????????????? | | ?????????????????????????????????????????????????? | | ?????????????????????????????????????????????????? | | ?????????????????????????????????????????????????? | | ?????????????????????????????????????????????????? | | ???????????????????????????????????"""???????????? | | ????????????????????????????????????T"???????????? | | ????????????????????????###????????"""???????????? | | ???????????????????????##;#??????????????????????? | | ?????????????????????### ;###????????????????????? | | ?????????????????????# #????????????????????? | | ?????????????????????#[ #????????????????????? | | ?????????????????????#%% %#????????????????????? | | ?????????????????????#!!!% #????????????????????? | | ????????????????# ?#!!!@ #????????????????????? | | ????????????????# #!!!% #????????????????????? | | ????????????##### # = #???????????????T???? | | ???????????? # ! ????????????????? | | ???????????? # ?????????????? | | ????????????? # *!! ??????????? | | ??????????????# # # % *!! ???????????? | | ?????????????## # # k !!! ???????????? | | ?????????????# # [ u !???????????? | | ??????????????# * ####+ # [ % ???????????? | | ??????????????# # %= ########????????????? | | ??????????????# # [ * ##???????????????????? | | ??????????????? # ##????????????????????? | | ??????#######???# H #????????????????????? | | ??????# ## "#????????????????????? | | ??????# """" ## u##????????????????????? | | ??????# """" ## #?##???????????????"T"? | | ??????# """" ## = "# #??###?????????????? | | ??????# ## = ## ###???????????? | | ??????# """" ## = = ????? | | ??#???# """" ## ## ????? | | ??# ??# """" ## # ## ##### #????? | | ??# ?# ## **! ###?? ##?????????????? | | ??# #####+##### *! #???? #??????????????? | | ??# *! #???? #??????????????? | +----------------------------------------------------+ Best States ------------- Heat Dissipation 41 Energy Generation 10 Energy Capacity 250 Matter Stores 300 Matter Capacity 300 Sight Range 16 Terrain Scan Density 10 Armor Coverage 150 Evasion (%) 40 Recoil Reduction 3 Item Schematics ----------------- Lgt. Armor Plating | -8/Materials | Scanalyzed EM Pulse Gun | -8/Materials | Scanalyzed EMP Blaster | -8/Materials | Scanalyzed Robot Schematics ------------------ None Fabricated ------------ Nothing Alien Tech Used ----------------- None Achievements -------------- None Challenges ------------ None Game ------ Seed EtherialSuspensionWheel Manual? 0 Play Time 00:27:43 Cumulative 61.7 hours Start 2024.04.20 @ 15:07:13 End 2024.04.20 @ 15:32:06 Sessions 1 Manual Loads 0 Difficulty Rogue Special Mode None Game No. 65 Rogue 65 Adventurer 0 Explorer 0 Win Type - Total 0 Types 0/0/0/0/0/0/0/0/0 Lore% 31 Gallery% 48 Achievement% 32 Wizard Run 0 Options --------- Layout 0 ASCII 0 Keyboard 0 Movement Mouse Keybinds 0 Fullscreen 2 Font 24/Smallcaps Map View 183x50 Zoom Use 0% Tactical HUD 1 Map Filters NONE Filters NONE Steam 0 RUN: fa0234f6-07b0-4c50-aca1-e797d7ad226a